[Event "Titled Tuesday Blitz October 31 Late 2023"]
[White "Zakhartsov, Vladimir"]
[Black "Przybylski, Wojciech"]
[WhiteFideId "4145097"]
[BlackFideId "1117599"]
[WhiteElo "2825"]
[BlackElo "2565"]
[Result "1-0"]
[Round "4"]
[TimeControl "180+1"]
[Date "2023.10.31"]
[WhiteClock "0:00:13"]
[BlackClock "0:00:04"]
[Board "41"]

1. e4 {[%clk 0:03:00]}  c6 {[%clk 0:02:59]} 2. d4 {[%clk 0:02:48]}  d5 {[%clk 0:02:59]} 3. Nc3 {[%clk 0:02:44]}  dxe4 {[%clk 0:02:57]} 4. Nxe4 {[%clk 0:02:45]}  Nf6 {[%clk 0:02:57]} 5. Nxf6+ {[%clk 0:02:45]}  exf6 {[%clk 0:02:57]} 6. c3 {[%clk 0:02:44]}  Bd6 {[%clk 0:02:57]} 7. Bd3 {[%clk 0:02:44]}  O-O {[%clk 0:02:56]} 8. Ne2 {[%clk 0:02:41]}  Re8 {[%clk 0:02:55]} 9. Qc2 {[%clk 0:02:40]}  g6 {[%clk 0:02:49]} 10. Bh6 {[%clk 0:02:36]}  Nd7 {[%clk 0:02:42]} 11. h4 {[%clk 0:02:33]}  f5 {[%clk 0:02:29]} 12. h5 {[%clk 0:02:32]}  Nf6 {[%clk 0:02:28]} 13. Bg5 {[%clk 0:02:26]}  Be6 {[%clk 0:02:21]} 14. O-O-O {[%clk 0:02:21]}  Be7 {[%clk 0:02:13]} 15. hxg6 {[%clk 0:02:18]}  fxg6 {[%clk 0:02:11]} 16. Kb1 {[%clk 0:02:18]}  Qa5 {[%clk 0:02:03]} 17. Nc1 {[%clk 0:02:14]}  b5 {[%clk 0:01:53]} 18. Rde1 {[%clk 0:02:04]}  Bd8 {[%clk 0:01:38]} 19. Nb3 {[%clk 0:01:58]}  Qc7 {[%clk 0:01:37]} 20. Nc5 {[%clk 0:01:56]}  Bf7 {[%clk 0:01:34]} 21. Qd2 {[%clk 0:01:52]}  Be7 {[%clk 0:01:16]} 22. Bf4 {[%clk 0:01:27]}  Qd8 {[%clk 0:01:13]} 23. Be5 {[%clk 0:01:14]}  Bxc5 {[%clk 0:00:41]} 24. Bxf6 {[%clk 0:01:07]}  Qxf6 {[%clk 0:00:31]} 25. dxc5 {[%clk 0:01:07]}  Rad8 {[%clk 0:00:31]} 26. Rxe8+ {[%clk 0:01:06]}  Rxe8 {[%clk 0:00:31]} 27. Qh6 {[%clk 0:01:00]}  Qg7 {[%clk 0:00:31]} 28. Qxg7+ {[%clk 0:00:57]}  Kxg7 {[%clk 0:00:31]} 29. b4 {[%clk 0:00:57]}  h5 {[%clk 0:00:29]} 30. Kc2 {[%clk 0:00:53]}  Kf6 {[%clk 0:00:24]} 31. Ra1 {[%clk 0:00:51]}  Bd5 {[%clk 0:00:24]} 32. f3 {[%clk 0:00:44]}  h4 {[%clk 0:00:24]} 33. a4 {[%clk 0:00:44]}  a6 {[%clk 0:00:23]} 34. axb5 {[%clk 0:00:42]}  axb5 {[%clk 0:00:24]} 35. Ra6 {[%clk 0:00:33]}  Ke5 {[%clk 0:00:23]} 36. Ra7 {[%clk 0:00:32]}  g5 {[%clk 0:00:17]} 37. Kd2 {[%clk 0:00:29]}  Kf4 {[%clk 0:00:16]} 38. Rh7 {[%clk 0:00:23]}  Kg3 {[%clk 0:00:16]} 39. Rg7 {[%clk 0:00:16]}  g4 {[%clk 0:00:12]} 40. Bxf5 {[%clk 0:00:15]}  Kxg2 {[%clk 0:00:10]} 41. Rxg4+ {[%clk 0:00:14]}  Kf2 {[%clk 0:00:08]} 42. Rxh4 {[%clk 0:00:14]}  Bxf3 {[%clk 0:00:09]} 43. Bd3 {[%clk 0:00:14]}  Rd8 {[%clk 0:00:08]} 44. Rf4 {[%clk 0:00:10]}  Kg3 {[%clk 0:00:08]} 45. Rf6 {[%clk 0:00:09]}  Ra8 {[%clk 0:00:06]} 46. Ke3 {[%clk 0:00:09]}  Re8+ {[%clk 0:00:06]} 47. Kd4 {[%clk 0:00:09]}  Rd8+ {[%clk 0:00:05]} 48. Rd6 {[%clk 0:00:09]}  Rf8 {[%clk 0:00:05]} 49. Ke5 {[%clk 0:00:08]}  Re8+ {[%clk 0:00:04]} 50. Re6 {[%clk 0:00:08]}  Rd8 {[%clk 0:00:05]} 51. Be4 {[%clk 0:00:08]}  Bxe4 {[%clk 0:00:04]} 52. Kxe4 {[%clk 0:00:09]}  Rc8 {[%clk 0:00:04]} 53. Ke5 {[%clk 0:00:09]}  Kf3 {[%clk 0:00:05]} 54. Kd6 {[%clk 0:00:10]}  Ra8 {[%clk 0:00:03]} 55. Kxc6 {[%clk 0:00:10]}  Ra3 {[%clk 0:00:03]} 56. Kxb5 {[%clk 0:00:10]}  Rxc3 {[%clk 0:00:04]} 57. c6 {[%clk 0:00:11]}  Kf4 {[%clk 0:00:04]} 58. Kb6 {[%clk 0:00:11]}  Kf5 {[%clk 0:00:05]} 59. Re8 {[%clk 0:00:12]}  Rc4 {[%clk 0:00:05]} 60. b5 {[%clk 0:00:12]}  Kf6 {[%clk 0:00:06]} 61. c7 {[%clk 0:00:12]}  Kf7 {[%clk 0:00:04]} 62. c8=Q {[%clk 0:00:13]} 1-0


[Site "https://www.chess.com"]

[Event "Titled Tuesday Blitz October 31 Late 2023"]
[White "Holt, Conrad"]
[Black "Roebers, Eline"]
[WhiteFideId "2034387"]
[BlackFideId "1058401"]
[WhiteElo "2805"]
[BlackElo "2563"]
[Result "1-0"]
[Round "4"]
[TimeControl "180+1"]
[Date "2023.10.31"]
[WhiteClock "0:00:13"]
[BlackClock "0:00:08"]
[Board "43"]

1. d4 {[%clk 0:03:00]}  f5 {[%clk 0:02:59]} 2. g3 {[%clk 0:02:57]}  Nf6 {[%clk 0:02:59]} 3. Bg2 {[%clk 0:02:57]}  g6 {[%clk 0:03:00]} 4. Nh3 {[%clk 0:02:55]}  Bg7 {[%clk 0:02:59]} 5. O-O {[%clk 0:02:55]}  d6 {[%clk 0:02:56]} 6. Nc3 {[%clk 0:02:55]}  e5 {[%clk 0:02:54]} 7. dxe5 {[%clk 0:02:51]}  dxe5 {[%clk 0:02:55]} 8. Qxd8+ {[%clk 0:02:51]}  Kxd8 {[%clk 0:02:55]} 9. e4 {[%clk 0:02:47]}  c6 {[%clk 0:02:54]} 10. f4 {[%clk 0:02:44]}  exf4 {[%clk 0:02:53]} 11. Bxf4 {[%clk 0:02:38]}  h6 {[%clk 0:02:40]} 12. Rad1+ {[%clk 0:02:37]}  Ke8 {[%clk 0:02:40]} 13. Bd6 {[%clk 0:02:19]}  Kf7 {[%clk 0:02:16]} 14. Nf4 {[%clk 0:02:15]}  Re8 {[%clk 0:02:13]} 15. h3 {[%clk 0:02:08]}  Nbd7 {[%clk 0:01:41]} 16. exf5 {[%clk 0:02:04]}  gxf5 {[%clk 0:01:42]} 17. Nd3 {[%clk 0:02:01]}  Nb6 {[%clk 0:01:35]} 18. b3 {[%clk 0:01:50]}  Kg8 {[%clk 0:01:26]} 19. Nc5 {[%clk 0:01:41]}  Nfd7 {[%clk 0:01:24]} 20. N3a4 {[%clk 0:01:35]}  Nxa4 {[%clk 0:01:20]} 21. Nxa4 {[%clk 0:01:34]}  Nf6 {[%clk 0:01:11]} 22. Nc5 {[%clk 0:01:28]}  Nd7 {[%clk 0:01:10]} 23. Rxf5 {[%clk 0:01:24]}  Nxc5 {[%clk 0:01:05]} 24. Rxc5 {[%clk 0:01:23]}  Be6 {[%clk 0:01:03]} 25. Bf4 {[%clk 0:01:14]}  Rad8 {[%clk 0:00:58]} 26. Rxd8 {[%clk 0:01:05]}  Rxd8 {[%clk 0:00:59]} 27. Ra5 {[%clk 0:00:49]}  Kf7 {[%clk 0:00:41]} 28. Kf1 {[%clk 0:00:42]}  Rd1+ {[%clk 0:00:34]} 29. Ke2 {[%clk 0:00:41]}  Rg1 {[%clk 0:00:30]} 30. Bf1 {[%clk 0:00:39]}  a6 {[%clk 0:00:26]} 31. Ra4 {[%clk 0:00:25]}  Rh1 {[%clk 0:00:24]} 32. g4 {[%clk 0:00:19]}  Bd5 {[%clk 0:00:20]} 33. Kf2 {[%clk 0:00:13]}  h5 {[%clk 0:00:18]} 34. gxh5 {[%clk 0:00:12]}  Bf6 {[%clk 0:00:19]} 35. Bg3 {[%clk 0:00:11]}  Be7 {[%clk 0:00:16]} 36. Rf4+ {[%clk 0:00:11]}  Ke6 {[%clk 0:00:15]} 37. c4 {[%clk 0:00:11]}  Bc5+ {[%clk 0:00:15]} 38. Ke2 {[%clk 0:00:11]}  Bd6 {[%clk 0:00:10]} 39. cxd5+ {[%clk 0:00:12]}  cxd5 {[%clk 0:00:10]} 40. Rg4 {[%clk 0:00:12]}  Bxg3 {[%clk 0:00:11]} 41. Rxg3 {[%clk 0:00:12]}  Rh2+ {[%clk 0:00:08]} 42. Bg2 {[%clk 0:00:13]} 1-0


[Site "https://www.chess.com"]

[Event "Titled Tuesday Blitz October 31 Late 2023"]
[White "dodoucb"]
[Black "Alex_Sahakyan2006"]
[WhiteElo "2546"]
[BlackElo "2749"]
[Result "0-1"]
[Round "4"]
[TimeControl "180+1"]
[Date "2023.10.31"]
[WhiteClock "0:00:05"]
[BlackClock "0:01:03"]
[Board "46"]

1. d4 {[%clk 0:02:59]}  Nf6 {[%clk 0:02:59]} 2. Nf3 {[%clk 0:02:59]}  d5 {[%clk 0:02:55]} 3. c4 {[%clk 0:02:59]}  dxc4 {[%clk 0:02:53]} 4. e3 {[%clk 0:02:58]}  Bg4 {[%clk 0:02:52]} 5. Bxc4 {[%clk 0:02:56]}  e6 {[%clk 0:02:52]} 6. Qb3 {[%clk 0:01:17]}  Bxf3 {[%clk 0:02:48]} 7. gxf3 {[%clk 0:01:17]}  Qc8 {[%clk 0:02:38]} 8. Nc3 {[%clk 0:01:15]}  Be7 {[%clk 0:02:29]} 9. Bd2 {[%clk 0:01:07]}  Nbd7 {[%clk 0:02:25]} 10. O-O-O {[%clk 0:01:07]}  Nb6 {[%clk 0:02:24]} 11. Kb1 {[%clk 0:01:03]}  Nxc4 {[%clk 0:02:23]} 12. Qxc4 {[%clk 0:01:04]}  Qd7 {[%clk 0:02:24]} 13. e4 {[%clk 0:01:03]}  O-O-O {[%clk 0:02:19]} 14. Bf4 {[%clk 0:01:01]}  Nh5 {[%clk 0:02:07]} 15. Be3 {[%clk 0:01:00]}  Kb8 {[%clk 0:02:06]} 16. Rc1 {[%clk 0:00:55]}  c6 {[%clk 0:02:01]} 17. Rhd1 {[%clk 0:00:54]}  Nf6 {[%clk 0:01:54]} 18. Bf4+ {[%clk 0:00:51]}  Ka8 {[%clk 0:01:53]} 19. Na4 {[%clk 0:00:50]}  b5 {[%clk 0:01:47]} 20. Qxc6+ {[%clk 0:00:23]}  Qxc6 {[%clk 0:01:48]} 21. Rxc6 {[%clk 0:00:23]}  bxa4 {[%clk 0:01:48]} 22. Rc7 {[%clk 0:00:24]}  Rd7 {[%clk 0:01:48]} 23. Rdc1 {[%clk 0:00:24]}  Rhd8 {[%clk 0:01:41]} 24. Rxd7 {[%clk 0:00:20]}  Rxd7 {[%clk 0:01:42]} 25. Rc8+ {[%clk 0:00:21]}  Kb7 {[%clk 0:01:41]} 26. Rb8+ {[%clk 0:00:21]}  Ka6 {[%clk 0:01:41]} 27. Be3 {[%clk 0:00:19]}  Rb7 {[%clk 0:01:39]} 28. Rc8 {[%clk 0:00:17]}  Nd7 {[%clk 0:01:25]} 29. Rc6+ {[%clk 0:00:15]}  Nb6 {[%clk 0:01:23]} 30. Kc2 {[%clk 0:00:14]}  Kb5 {[%clk 0:01:20]} 31. Rc3 {[%clk 0:00:13]}  Bb4 {[%clk 0:01:18]} 32. Rd3 {[%clk 0:00:13]}  Rc7+ {[%clk 0:01:18]} 33. Kb1 {[%clk 0:00:14]}  Nc4 {[%clk 0:01:17]} 34. Bf4 {[%clk 0:00:14]}  Bd6 {[%clk 0:01:16]} 35. e5 {[%clk 0:00:07]}  Be7 {[%clk 0:01:16]} 36. d5 {[%clk 0:00:07]}  exd5 {[%clk 0:01:14]} 37. Rxd5+ {[%clk 0:00:08]}  Kc6 {[%clk 0:01:14]} 38. Rd4 {[%clk 0:00:07]}  Kc5 {[%clk 0:01:14]} 39. Rd1 {[%clk 0:00:05]}  Rc6 {[%clk 0:01:13]} 40. b3 {[%clk 0:00:05]}  axb3 {[%clk 0:01:11]} 41. axb3 {[%clk 0:00:06]}  Na3+ {[%clk 0:01:12]} 42. Kb2 {[%clk 0:00:06]}  Kb6 {[%clk 0:01:05]} 43. Rd7 {[%clk 0:00:07]}  Rc2+ {[%clk 0:01:04]} 44. Ka1 {[%clk 0:00:06]}  Bc5 {[%clk 0:01:03]} 45. Rxf7 {[%clk 0:00:05]}  Bd4# {[%clk 0:01:03]} 0-1


[Site "https://www.chess.com"]

[Event "Titled Tuesday Blitz October 31 Late 2023"]
[White "Koellner, Ruben Gideon"]
[Black "Deeper44"]
[WhiteFideId "12993093"]
[WhiteElo "2744"]
[BlackElo "2544"]
[Result "1-0"]
[Round "4"]
[TimeControl "180+1"]
[Date "2023.10.31"]
[WhiteClock "0:00:12"]
[BlackClock "0:00:00"]
[Board "47"]

1. d4 {[%clk 0:02:48]}  Nf6 {[%clk 0:02:59]} 2. Nf3 {[%clk 0:02:47]}  g6 {[%clk 0:02:59]} 3. Nbd2 {[%clk 0:02:47]}  Bg7 {[%clk 0:03:00]} 4. e4 {[%clk 0:02:41]}  d6 {[%clk 0:03:00]} 5. c3 {[%clk 0:02:41]}  O-O {[%clk 0:03:01]} 6. Bc4 {[%clk 0:02:40]}  c6 {[%clk 0:03:00]} 7. Bb3 {[%clk 0:02:37]}  b5 {[%clk 0:02:58]} 8. O-O {[%clk 0:02:37]}  a5 {[%clk 0:02:58]} 9. a4 {[%clk 0:02:37]}  bxa4 {[%clk 0:02:55]} 10. Bxa4 {[%clk 0:02:37]}  c5 {[%clk 0:02:44]} 11. dxc5 {[%clk 0:02:33]}  dxc5 {[%clk 0:02:43]} 12. Qe2 {[%clk 0:02:33]}  Ba6 {[%clk 0:02:43]} 13. Bb5 {[%clk 0:02:31]}  Bxb5 {[%clk 0:02:41]} 14. Qxb5 {[%clk 0:02:32]}  Qc7 {[%clk 0:02:23]} 15. e5 {[%clk 0:02:26]}  Ng4 {[%clk 0:02:20]} 16. e6 {[%clk 0:02:22]}  fxe6 {[%clk 0:02:20]} 17. Qc4 {[%clk 0:02:20]}  Rf4 {[%clk 0:01:15]} 18. Qxe6+ {[%clk 0:02:18]}  Kh8 {[%clk 0:01:15]} 19. h3 {[%clk 0:02:07]}  Ra6 {[%clk 0:01:07]} 20. Qe2 {[%clk 0:01:54]}  Ne5 {[%clk 0:01:04]} 21. Nxe5 {[%clk 0:01:47]}  Qxe5 {[%clk 0:00:44]} 22. Qxe5 {[%clk 0:01:38]}  Bxe5 {[%clk 0:00:45]} 23. Nf3 {[%clk 0:01:39]}  Rxf3 {[%clk 0:00:41]} 24. gxf3 {[%clk 0:01:40]}  Kg7 {[%clk 0:00:37]} 25. Re1 {[%clk 0:01:34]}  Bd6 {[%clk 0:00:35]} 26. Be3 {[%clk 0:01:19]}  Nc6 {[%clk 0:00:31]} 27. Ra4 {[%clk 0:01:18]}  Ne5 {[%clk 0:00:31]} 28. Kg2 {[%clk 0:01:16]}  Nd3 {[%clk 0:00:31]} 29. Re2 {[%clk 0:01:14]}  Rb6 {[%clk 0:00:26]} 30. Rxa5 {[%clk 0:01:12]}  Nxb2 {[%clk 0:00:25]} 31. Bxc5 {[%clk 0:01:11]}  Bxc5 {[%clk 0:00:24]} 32. Rxc5 {[%clk 0:01:12]}  Nd3 {[%clk 0:00:21]} 33. Rxe7+ {[%clk 0:01:06]}  Kf6 {[%clk 0:00:20]} 34. Rcc7 {[%clk 0:01:06]}  Nf4+ {[%clk 0:00:20]} 35. Kg3 {[%clk 0:01:06]}  Nh5+ {[%clk 0:00:18]} 36. Kh2 {[%clk 0:01:06]}  Rb2 {[%clk 0:00:17]} 37. Rf7+ {[%clk 0:01:03]}  Kg5 {[%clk 0:00:16]} 38. Rc5+ {[%clk 0:01:01]}  Kh6 {[%clk 0:00:16]} 39. Kg2 {[%clk 0:01:00]}  Rc2 {[%clk 0:00:10]} 40. c4 {[%clk 0:00:59]}  Ng7 {[%clk 0:00:06]} 41. h4 {[%clk 0:00:54]}  Nf5 {[%clk 0:00:04]} 42. Rfxf5 {[%clk 0:00:43]}  gxf5 {[%clk 0:00:05]} 43. Kg3 {[%clk 0:00:44]}  Kg6 {[%clk 0:00:03]} 44. Rc6+ {[%clk 0:00:39]}  Kh5 {[%clk 0:00:03]} 45. Rc8 {[%clk 0:00:27]}  f4+ {[%clk 0:00:03]} 46. Kxf4 {[%clk 0:00:26]}  Rxf2 {[%clk 0:00:03]} 47. Kg3 {[%clk 0:00:25]}  Rc2 {[%clk 0:00:04]} 48. Rc5+ {[%clk 0:00:24]}  Kg6 {[%clk 0:00:04]} 49. Kg4 {[%clk 0:00:25]}  Rg2+ {[%clk 0:00:04]} 50. Kf4 {[%clk 0:00:25]}  Rh2 {[%clk 0:00:05]} 51. Kg3 {[%clk 0:00:18]}  Rc2 {[%clk 0:00:04]} 52. f4 {[%clk 0:00:14]}  h5 {[%clk 0:00:03]} 53. Kf3 {[%clk 0:00:14]}  Rc1 {[%clk 0:00:03]} 54. Ke4 {[%clk 0:00:13]}  Re1+ {[%clk 0:00:03]} 55. Kd4 {[%clk 0:00:13]}  Rf1 {[%clk 0:00:03]} 56. Rg5+ {[%clk 0:00:13]}  Kf6 {[%clk 0:00:02]} 57. Ke4 {[%clk 0:00:13]}  Re1+ {[%clk 0:00:02]} 58. Kd5 {[%clk 0:00:13]}  Rd1+ {[%clk 0:00:02]} 59. Kc6 {[%clk 0:00:13]}  Rd4 {[%clk 0:00:02]} 60. c5 {[%clk 0:00:13]}  Rxf4 {[%clk 0:00:02]} 61. Rxh5 {[%clk 0:00:14]}  Kg6 {[%clk 0:00:02]} 62. Re5 {[%clk 0:00:12]}  Rxh4 {[%clk 0:00:02]} 63. Kd7 {[%clk 0:00:12]}  Rd4+ {[%clk 0:00:02]} 64. Ke6 {[%clk 0:00:12]}  Rc4 {[%clk 0:00:02]} 65. Rd5 {[%clk 0:00:10]}  Kg7 {[%clk 0:00:02]} 66. Kd6 {[%clk 0:00:10]}  Kf8 {[%clk 0:00:02]} 67. Kd7 {[%clk 0:00:09]}  Rc1 {[%clk 0:00:01]} 68. c6 {[%clk 0:00:09]}  Kf7 {[%clk 0:00:02]} 69. c7 {[%clk 0:00:10]}  Kf6 {[%clk 0:00:02]} 70. c8=Q {[%clk 0:00:10]}  Rxc8 {[%clk 0:00:03]} 71. Kxc8 {[%clk 0:00:11]}  Ke6 {[%clk 0:00:00]} 72. Rd7 {[%clk 0:00:12]} 1-0


[Site "https://www.chess.com"]

[Event "Titled Tuesday Blitz October 31 Late 2023"]
[White "Schnaider, Ilan"]
[Black "Sreyas Payyappat"]
[WhiteFideId "169013"]
[BlackFideId "46674969"]
[WhiteElo "2738"]
[BlackElo "2544"]
[Result "1-0"]
[Round "4"]
[TimeControl "180+1"]
[Date "2023.10.31"]
[WhiteClock "0:00:03"]
[BlackClock "0:00:04"]
[Board "48"]

1. e4 {[%clk 0:03:00]}  c6 {[%clk 0:02:59]} 2. Nf3 {[%clk 0:03:00]}  d5 {[%clk 0:03:00]} 3. Nc3 {[%clk 0:03:00]}  dxe4 {[%clk 0:03:01]} 4. Nxe4 {[%clk 0:03:01]}  Nf6 {[%clk 0:03:01]} 5. Qe2 {[%clk 0:03:02]}  Nxe4 {[%clk 0:03:01]} 6. Qxe4 {[%clk 0:03:03]}  Nd7 {[%clk 0:03:02]} 7. Bc4 {[%clk 0:03:02]}  Nf6 {[%clk 0:03:03]} 8. Ne5 {[%clk 0:03:01]}  e6 {[%clk 0:03:03]} 9. Qf4 {[%clk 0:03:02]}  Bd6 {[%clk 0:03:00]} 10. d4 {[%clk 0:02:59]}  b5 {[%clk 0:02:56]} 11. Bd3 {[%clk 0:02:58]}  Bb7 {[%clk 0:02:55]} 12. O-O {[%clk 0:02:47]}  Qc7 {[%clk 0:02:55]} 13. Re1 {[%clk 0:02:38]}  O-O-O {[%clk 0:02:43]} 14. a4 {[%clk 0:02:20]}  Nd5 {[%clk 0:02:30]} 15. Qxf7 {[%clk 0:02:08]}  Bxe5 {[%clk 0:02:28]} 16. Qxe6+ {[%clk 0:02:08]}  Kb8 {[%clk 0:02:28]} 17. Qxe5 {[%clk 0:02:06]}  Qxe5 {[%clk 0:02:14]} 18. Rxe5 {[%clk 0:02:06]}  bxa4 {[%clk 0:02:05]} 19. Rxa4 {[%clk 0:02:02]}  Nb6 {[%clk 0:02:04]} 20. Rb4 {[%clk 0:01:54]}  Rhg8 {[%clk 0:02:03]} 21. Bf4 {[%clk 0:01:53]}  Ka8 {[%clk 0:02:01]} 22. Be4 {[%clk 0:01:33]}  Rgf8 {[%clk 0:01:59]} 23. Bg3 {[%clk 0:01:30]}  Rfe8 {[%clk 0:01:56]} 24. Rb3 {[%clk 0:01:18]}  Rxe5 {[%clk 0:01:44]} 25. Bxe5 {[%clk 0:01:19]}  Nc4 {[%clk 0:01:27]} 26. Bxg7 {[%clk 0:00:45]}  Nd2 {[%clk 0:01:03]} 27. Re3 {[%clk 0:00:43]}  Nc4 {[%clk 0:01:03]} 28. Re1 {[%clk 0:00:31]}  Nxb2 {[%clk 0:00:59]} 29. Bxh7 {[%clk 0:00:28]}  a6 {[%clk 0:00:49]} 30. d5 {[%clk 0:00:25]}  Nc4 {[%clk 0:00:46]} 31. dxc6 {[%clk 0:00:20]}  Bxc6 {[%clk 0:00:45]} 32. Bc3 {[%clk 0:00:16]}  Bd5 {[%clk 0:00:32]} 33. Bd3 {[%clk 0:00:15]}  Kb7 {[%clk 0:00:30]} 34. h3 {[%clk 0:00:10]}  Ra8 {[%clk 0:00:26]} 35. Re7+ {[%clk 0:00:07]}  Kc6 {[%clk 0:00:25]} 36. h4 {[%clk 0:00:06]}  a5 {[%clk 0:00:24]} 37. h5 {[%clk 0:00:06]}  a4 {[%clk 0:00:22]} 38. h6 {[%clk 0:00:07]}  Rg8 {[%clk 0:00:04]} 39. Bxc4 {[%clk 0:00:03]} 1-0


[Site "https://www.chess.com"]

[Event "Titled Tuesday Blitz October 31 Late 2023"]
[White "Maximov, Dmitry"]
[Black "Manukyan, Artyom"]
[WhiteFideId "14105659"]
[BlackFideId "13305786"]
[WhiteElo "2727"]
[BlackElo "2534"]
[Result "1-0"]
[Round "4"]
[TimeControl "180+1"]
[Date "2023.10.31"]
[WhiteClock "0:00:06"]
[BlackClock "0:00:00"]
[Board "51"]

1. e4 {[%clk 0:03:00]}  e5 {[%clk 0:02:52]} 2. Nf3 {[%clk 0:03:01]}  Nc6 {[%clk 0:02:50]} 3. Bb5 {[%clk 0:03:01]}  a6 {[%clk 0:02:50]} 4. Ba4 {[%clk 0:03:01]}  Nf6 {[%clk 0:02:51]} 5. O-O {[%clk 0:03:01]}  Be7 {[%clk 0:02:51]} 6. Re1 {[%clk 0:03:01]}  b5 {[%clk 0:02:52]} 7. Bb3 {[%clk 0:03:01]}  d6 {[%clk 0:02:52]} 8. c3 {[%clk 0:03:00]}  O-O {[%clk 0:02:53]} 9. h3 {[%clk 0:03:01]}  Bb7 {[%clk 0:02:54]} 10. d3 {[%clk 0:03:01]}  Re8 {[%clk 0:02:54]} 11. Nbd2 {[%clk 0:03:01]}  Na5 {[%clk 0:02:54]} 12. Bc2 {[%clk 0:03:01]}  c5 {[%clk 0:02:55]} 13. Nf1 {[%clk 0:03:01]}  Bf8 {[%clk 0:02:55]} 14. Ng3 {[%clk 0:03:01]}  g6 {[%clk 0:02:55]} 15. Bg5 {[%clk 0:03:01]}  Bg7 {[%clk 0:02:55]} 16. Qd2 {[%clk 0:03:01]}  Nc6 {[%clk 0:02:54]} 17. Rad1 {[%clk 0:03:00]}  Qe7 {[%clk 0:02:52]} 18. Bh6 {[%clk 0:02:59]}  Bh8 {[%clk 0:02:46]} 19. a3 {[%clk 0:02:53]}  Rad8 {[%clk 0:02:45]} 20. Bb3 {[%clk 0:02:52]}  Rd7 {[%clk 0:02:41]} 21. Ng5 {[%clk 0:02:41]}  Nd8 {[%clk 0:02:39]} 22. f4 {[%clk 0:02:38]}  Bg7 {[%clk 0:02:33]} 23. Bxg7 {[%clk 0:02:36]}  Kxg7 {[%clk 0:02:34]} 24. f5 {[%clk 0:02:34]}  d5 {[%clk 0:02:31]} 25. exd5 {[%clk 0:02:27]}  Bxd5 {[%clk 0:02:30]} 26. Bxd5 {[%clk 0:02:25]}  Rxd5 {[%clk 0:02:31]} 27. Qf2 {[%clk 0:02:19]}  Qd7 {[%clk 0:02:22]} 28. Rf1 {[%clk 0:02:07]}  Rf8 {[%clk 0:02:22]} 29. fxg6 {[%clk 0:01:56]}  fxg6 {[%clk 0:02:22]} 30. N3e4 {[%clk 0:01:53]}  Qe7 {[%clk 0:02:07]} 31. Qh4 {[%clk 0:01:53]}  h6 {[%clk 0:02:04]} 32. Nf3 {[%clk 0:01:48]}  Rf7 {[%clk 0:01:58]} 33. Qe1 {[%clk 0:01:39]}  Ne6 {[%clk 0:01:50]} 34. Nxf6 {[%clk 0:01:34]}  Rxf6 {[%clk 0:01:42]} 35. d4 {[%clk 0:01:18]}  cxd4 {[%clk 0:01:36]} 36. cxd4 {[%clk 0:01:18]}  Nxd4 {[%clk 0:01:25]} 37. Rxd4 {[%clk 0:01:15]}  Qa7 {[%clk 0:01:02]} 38. Kh1 {[%clk 0:01:07]}  exd4 {[%clk 0:00:57]} 39. Qe4 {[%clk 0:01:08]}  Qd7 {[%clk 0:00:52]} 40. Rd1 {[%clk 0:00:55]}  d3 {[%clk 0:00:48]} 41. Rd2 {[%clk 0:00:51]}  Qe6 {[%clk 0:00:44]} 42. Qh4 {[%clk 0:00:40]}  Qe3 {[%clk 0:00:28]} 43. Qb4 {[%clk 0:00:10]}  h5 {[%clk 0:00:11]} 44. Qc3 {[%clk 0:00:08]}  Kf7 {[%clk 0:00:07]} 45. b4 {[%clk 0:00:07]}  Rxf3 {[%clk 0:00:05]} 46. gxf3 {[%clk 0:00:07]}  Qxf3+ {[%clk 0:00:06]} 47. Kh2 {[%clk 0:00:07]}  g5 {[%clk 0:00:04]} 48. Qc7+ {[%clk 0:00:07]}  Kg6 {[%clk 0:00:04]} 49. Qc6+ {[%clk 0:00:06]}  Kf5 {[%clk 0:00:04]} 50. Qc8+ {[%clk 0:00:06]}  Kg6 {[%clk 0:00:02]} 51. Qg8+ {[%clk 0:00:05]}  Kf6 {[%clk 0:00:02]} 52. Qf8+ {[%clk 0:00:05]}  Ke5 {[%clk 0:00:00]} 53. Qxf3 {[%clk 0:00:06]} 1-0


[Site "https://www.chess.com"]

[Event "Titled Tuesday Blitz October 31 Late 2023"]
[White "Rohan, Ahuja"]
[Black "Toncheva, Nadya"]
[WhiteFideId "5090598"]
[BlackFideId "2924056"]
[WhiteElo "2713"]
[BlackElo "2528"]
[Result "1-0"]
[Round "4"]
[TimeControl "180+1"]
[Date "2023.10.31"]
[WhiteClock "0:00:07"]
[BlackClock "0:00:01"]
[Board "53"]

1. Nf3 {[%clk 0:03:00]}  c5 {[%clk 0:02:59]} 2. g3 {[%clk 0:03:01]}  g6 {[%clk 0:02:59]} 3. c4 {[%clk 0:03:02]}  Bg7 {[%clk 0:03:00]} 4. Nc3 {[%clk 0:03:03]}  Nc6 {[%clk 0:03:00]} 5. Bg2 {[%clk 0:03:03]}  e5 {[%clk 0:03:00]} 6. O-O {[%clk 0:02:38]}  Nge7 {[%clk 0:02:59]} 7. a3 {[%clk 0:02:38]}  O-O {[%clk 0:02:59]} 8. Rb1 {[%clk 0:02:20]}  d6 {[%clk 0:02:57]} 9. b4 {[%clk 0:02:20]}  cxb4 {[%clk 0:02:39]} 10. axb4 {[%clk 0:02:18]}  Be6 {[%clk 0:02:39]} 11. d3 {[%clk 0:02:05]}  h6 {[%clk 0:02:39]} 12. b5 {[%clk 0:01:44]}  Nb8 {[%clk 0:02:36]} 13. Ba3 {[%clk 0:01:45]}  Qc7 {[%clk 0:02:27]} 14. b6 {[%clk 0:01:24]}  axb6 {[%clk 0:02:19]} 15. Nb5 {[%clk 0:01:24]}  Qd7 {[%clk 0:02:14]} 16. Bxd6 {[%clk 0:01:23]}  Nbc6 {[%clk 0:02:06]} 17. Nd2 {[%clk 0:01:00]}  Rfd8 {[%clk 0:01:46]} 18. Re1 {[%clk 0:00:54]}  Nd4 {[%clk 0:01:29]} 19. Bxe7 {[%clk 0:00:41]}  Qxe7 {[%clk 0:01:22]} 20. Nxd4 {[%clk 0:00:42]}  Rxd4 {[%clk 0:01:11]} 21. Rxb6 {[%clk 0:00:41]}  Rd7 {[%clk 0:01:11]} 22. Qb1 {[%clk 0:00:37]}  e4 {[%clk 0:01:03]} 23. Nxe4 {[%clk 0:00:23]}  Ra1 {[%clk 0:01:02]} 24. Qxa1 {[%clk 0:00:19]}  Bxa1 {[%clk 0:01:03]} 25. Rxa1 {[%clk 0:00:19]}  Kg7 {[%clk 0:01:01]} 26. Rab1 {[%clk 0:00:18]}  Rc7 {[%clk 0:00:54]} 27. Nc3 {[%clk 0:00:14]}  Qc5 {[%clk 0:00:22]} 28. R6b5 {[%clk 0:00:14]}  Qd4 {[%clk 0:00:20]} 29. Nd5 {[%clk 0:00:14]}  Bxd5 {[%clk 0:00:20]} 30. Rxd5 {[%clk 0:00:15]}  Qf6 {[%clk 0:00:18]} 31. Rdb5 {[%clk 0:00:14]}  Qe6 {[%clk 0:00:15]} 32. Bf3 {[%clk 0:00:12]}  g5 {[%clk 0:00:14]} 33. Rxb7 {[%clk 0:00:12]}  Rxb7 {[%clk 0:00:12]} 34. Rxb7 {[%clk 0:00:13]}  g4 {[%clk 0:00:11]} 35. Be4 {[%clk 0:00:12]}  Qe5 {[%clk 0:00:10]} 36. Kf1 {[%clk 0:00:08]}  h5 {[%clk 0:00:09]} 37. e3 {[%clk 0:00:07]}  h4 {[%clk 0:00:09]} 38. gxh4 {[%clk 0:00:07]}  Qxh2 {[%clk 0:00:08]} 39. Bd5 {[%clk 0:00:08]}  Qxh4 {[%clk 0:00:06]} 40. Rxf7+ {[%clk 0:00:08]}  Kg6 {[%clk 0:00:06]} 41. Rf4 {[%clk 0:00:09]}  Qh3+ {[%clk 0:00:06]} 42. Ke2 {[%clk 0:00:09]}  Kg5 {[%clk 0:00:03]} 43. Be6 {[%clk 0:00:07]}  Qh8 {[%clk 0:00:02]} 44. Bxg4 {[%clk 0:00:08]}  Qb8 {[%clk 0:00:02]} 45. Kf3 {[%clk 0:00:07]}  Qb2 {[%clk 0:00:02]} 46. Kg3 {[%clk 0:00:08]}  Qb8 {[%clk 0:00:02]} 47. c5 {[%clk 0:00:08]}  Qc7 {[%clk 0:00:02]} 48. d4 {[%clk 0:00:08]}  Qb8 {[%clk 0:00:02]} 49. Kf3 {[%clk 0:00:08]}  Qb7+ {[%clk 0:00:03]} 50. Kg3 {[%clk 0:00:09]}  Qb8 {[%clk 0:00:03]} 51. d5 {[%clk 0:00:09]}  Qe5 {[%clk 0:00:02]} 52. Kh3 {[%clk 0:00:06]}  Qxd5 {[%clk 0:00:02]} 53. Rf5+ {[%clk 0:00:06]}  Qxf5 {[%clk 0:00:01]} 54. Bxf5 {[%clk 0:00:07]} 1-0


[Site "https://www.chess.com"]